fUSD/lending_fUSD_20240805
["ID","MTS","AMOUNT","RATE_DAILY","PERIOD"]
[334190714,1722820254697,-563.39778508,0.00024883,2]
[334190715,1722820254709,-563.39778508,0.00024883,2]
[334190716,1722820254721,-563.39778508,0.00024883,2]
[334190717,1722820254735,-563.39778508,0.00024883,2]
[334190718,1722820254746,-563.39778508,0.00024883,2]
[334190719,1722820254758,-242.0,0.00024889,2]
[334190720,1722820254770,-155.0,0.00024899,2]
[334190721,1722820254781,-297.19942446,0.00024899,2]
[334190722,1722820254793,-155.0,0.00024899,2]
[334190723,1722820254816,-439.64535601,0.00024899,2]
[334190724,1722820254827,-158.88328541,0.00024899,2]
[334190725,1722820254839,-196.97900154,0.00024899,2]
[334190726,1722820254850,-155.2902479,0.00024899,2]
[334190727,1722820254861,-365.36537875,0.00024899,10]
[334190728,1722820254873,-155.0,0.00024899,2]
[334190729,1722820254884,-223.0,0.000249,8]
[334190730,1722820254896,-1000.0,0.000249,10]
[334190731,1722820255295,-25000.0,0.000249,2]
[334190732,1722820255308,-342.93998557,0.000249,10]
[334190733,1722820255321,-3219.47822144,0.000249,10]
[334190734,1722820255332,-563.89,0.000249,2]
[334190735,1722820255350,-165.17094929,0.000249,2]
[334190736,1722820255363,-267.11800025,0.000249,2]
[334190737,1722820255375,-178.01016574,0.000249,2]
[334190738,1722820255386,-477.72222444,0.000249,2]
[334190739,1722820255399,-169.68202047,0.000249,2]
[334190740,1722820255411,-170.18,0.000249,2]
[334190741,1722820255423,-196.01,0.000249,2]
[334190742,1722820255435,-174.75305878,0.000249,2]
[334190743,1722820255449,-174.75305878,0.000249,2]
[334190744,1722820255463,-175.25,0.000249,2]
[334190745,1722820255475,-502.34660415,0.000249,2]
[334190746,1722820255487,-156.21,0.000249,31]
[334190747,1722820255500,-156.21,0.000249,31]
[334190748,1722820255511,-156.21,0.000249,31]
[334190749,1722820255530,-156.21,0.000249,31]
[334190750,1722820255556,-156.21,0.000249,31]
[334190751,1722820255569,-156.21,0.000249,31]
[334190752,1722820255581,-2337.5526846,0.00024904,2]
[334190753,1722820255593,-5339.69474089,0.00024925,2]
[334190754,1722820255606,-734.03,0.00024968,2]
[334190755,1722820255618,-202.68830391,0.00024979,2]
[334190756,1722820255629,-628.1624989,0.00024979,2]
[334190757,1722820255641,-1297.00150596,0.00024979,2]
[334190758,1722820255658,-155.0,0.00024979,2]
[334190759,1722820255670,-168.11429592,0.00024979,2]
[334190760,1722820255683,-159.52895906,0.00024979,2]
[334190761,1722820255695,-155.213437,0.00024979,2]
[334190762,1722820255707,-151.0,0.00024983,7]
[334190763,1722820255719,-212.8,0.00024983,7]
[334190764,1722820255731,-151.0,0.00024983,7]
[334190765,1722820255743,-187.595446,0.00024983,7]
[334190766,1722820255755,-151.775873,0.00024983,7]
[334190767,1722820255773,-151.775873,0.00024983,7]
[334190768,1722820255786,-151.0,0.00024983,7]
[334190769,1722820255798,-56623.7724107,0.00024983,2]
[334190770,1722820255810,-61771.3880844,0.00024983,2]
[334190771,1722820255822,-40347.08447793,0.00024983,2]
[334190772,1722820255838,-26526.6919876,0.00024983,2]
[334190773,1722820256735,-2421.6,0.00016881,2]
[334190774,1722820256765,-884.862836,0.00016881,2]
[334190775,1722820256783,-4492.96771965,0.00016881,2]
[334190776,1722820256795,-45.22729257,0.00024983,2]
[334190777,1722820256810,-72066.6194318,0.00024983,2]
[334190778,1722820256822,-77214.2351055,0.00024983,2]
[334190779,1722820256834,-6850.9310961,0.00024983,2]
[334190780,1722820256845,-7473.7430139,0.00024983,2]
[334190781,1722820256858,-8096.5549317,0.00024983,2]
[334190782,1722820256870,-8719.3668496,0.00024983,2]
[334190783,1722820256881,-9342.1787674,0.00024983,2]
[334190784,1722820256894,-4760.9701599,0.00024983,2]
[334190785,1722820256906,-5193.785629,0.00024983,2]
[334190786,1722820256920,-5626.6010981,0.00024983,2]
[334190787,1722820256932,-6059.4165672,0.00024983,2]
[334190788,1722820256944,-6492.2320363,0.00024983,2]
[334190789,1722820256956,-151.0,0.00024983,7]
[334190790,1722820256969,-908.244538,0.00024983,7]
[334190791,1722820256980,-908.244538,0.00024983,7]
[334190792,1722820256992,-350.03856,0.00024983,7]
[334190793,1722820257004,-350.03856,0.00024983,7]
[334190794,1722820257017,-1361.4618763,0.00024983,2]
[334190795,1722820257029,-1492.4543633,0.00024983,2]
[334190796,1722820257041,-1623.4468504,0.00024983,2]
[334190797,1722820257053,-1754.4393374,0.00024983,2]
[334190798,1722820257065,-1885.4318244,0.00024983,2]
[334190799,1722820257076,-369.1087263,0.00024983,2]
[334190800,1722820257092,-404.6223685,0.00024983,2]
[334190801,1722820257104,-440.1360108,0.00024983,2]
[334190802,1722820257120,-475.6496531,0.00024983,2]
[334190803,1722820257132,-511.1632953,0.00024983,2]
[334190804,1722820257162,-218.74684726,0.00024989,2]
[334190805,1722820257180,-218.74684726,0.00024989,2]
[334190806,1722820257192,-363.80421493,0.00024989,2]
[334190807,1722820257204,-531.71425505,0.00024989,2]
[334190808,1722820257216,-200.0,0.00024996,2]
[334190809,1722820257229,-1829.63675985,0.00025,2]
[334190810,1722820257241,-374359.7075239,0.00025,2]
[334190811,1722820257257,-394.58101345,0.00025,2]
[334190812,1722820257298,-1650.0,0.00025,2]
[334190813,1722820257319,-5580.0,0.00025,2]
[334190814,1722820257337,-1130.129,0.00025,2]
[334190815,1722820257387,-958.876816,0.00025,2]
[334190816,1722820258852,-22778.24436651,0.00025,2]
[334190817,1722820258865,-1537.45878094,0.00025,2]
[334190818,1722820258879,-592.3999995,0.00025,2]
[334190819,1722820258904,-1334.69966067,0.00025,2]
[334190820,1722820258917,-674.54400006,0.00025,2]
[334190821,1722820258931,-54885.82806302,0.00025,2]
[334190822,1722820258946,-3290.46719148,0.00025,2]
[334190823,1722820258959,-150309.37853283,0.00025,2]
[334190824,1722820258972,-779266.97434258,0.00025,2]
[334190825,1722820258990,-16828.75095784,0.00025,2]
[334190826,1722820259017,-7721.11952623,0.00025,2]
[334190827,1722820259040,-296.13443335,0.00025,2]
[334190828,1722820259054,-21612.38443238,0.00025,2]
[334190829,1722820259068,-11415.69493823,0.00025,2]
[334190830,1722820259081,-23169.85435427,0.00025,2]
[334190831,1722820259096,-41890.50055992,0.00025,2]
[334190832,1722820259110,-3875.34550646,0.00025,2]
[334190833,1722820259123,-27325.17278632,0.00025,2]
[334190834,1722820259136,-791.9228673,0.00025,2]
[334190835,1722820259149,-464.6066,0.00025,2]
[334190836,1722820259163,-5369.1272966,0.00025,2]
[334190837,1722820259175,-12013.91786285,0.00025,2]
[334190838,1722820259188,-14927.14242552,0.00025,2]
[334190839,1722820259338,-1345.08973932,0.000137,5]
[334190840,1722820259352,-1734.91021068,0.00025,2]
[334190841,1722820259367,-25007.0,0.00025,2]
[334190842,1722820259380,-401.32999999,0.00025,2]
[334190843,1722820259394,-604.07802196,0.00025,2]
[334190844,1722820260295,-400.0,0.00011589,2]
[334190845,1722820260307,-5030.75353302,0.00025,2]
[334190846,1722820260334,-290.0,0.00025,2]
[334190847,1722820260351,-430.00524756,0.00025,2]
[334190848,1722820260371,-500.0,0.00025,2]
[334190849,1722820260398,-473.16872116,0.00025,2]
[334190850,1722820260411,-1762.43710629,0.00025,2]
[334190851,1722820260526,-3779.32754597,0.00025,2]
[334190852,1722820260542,-252.2390598,0.00025,2]
[334190853,1722820260557,-4017.62324958,0.00025,2]
[334190854,1722820260570,-3730.18497847,0.00025,2]
[334190855,1722820260603,-11089.9,0.00025,2]
[334190856,1722820260615,-59189.22962662,0.00025,2]
[334190857,1722820260628,-970.74420354,0.00025,2]
[334190858,1722820260640,-353.68141749,0.00025,2]
[334190859,1722820260653,-514.61985752,0.00025,2]
[334190860,1722820260666,-275.5687984,0.00025,2]
[334190861,1722820260679,-38556.9382946,0.00025,2]
[334190862,1722820260696,-38700.000001,0.00025,2]
[334190863,1722820260710,-194157.71033797,0.00025,2]
[334190864,1722820260728,-12650.3484,0.00025,2]
[334190865,1722820260742,-1384.35305882,0.00025,2]
[334190866,1722820260767,-9396.84872796,0.00025,2]
[334190867,1722820260781,-11246.44213903,0.00025,2]
[334190868,1722820260795,-605.03136388,0.00025,2]
[334190869,1722820260807,-253.23,0.00025,2]
[334190870,1722820260833,-661.15569926,0.00025,2]
[334190871,1722820260847,-445.6782,0.00025,2]
[334190872,1722820260917,-102439.15684323,0.00025,2]
[334190873,1722820260931,-75000.0,0.00025,2]
[334190874,1722820261152,-18489.299042,0.00025,2]
[334190875,1722820261685,-1506.12,0.00025,2]
[334190876,1722820261708,-62557.35318294,0.00025,2]
[334190877,1722820261742,-1334.20967776,0.00025,2]
[334190878,1722820261757,-573.43013765,0.00025,2]
[334190879,1722820261771,-80974.9151,0.00025,2]
[334190880,1722820261784,-4778.10428395,0.00025,2]
[334190881,1722820261797,-2721.3,0.00025,2]
[334190882,1722820261810,-335.60142443,0.00025,2]
[334190883,1722820261823,-15741.80963135,0.00025,2]
[334190884,1722820261869,-2785.0,0.00020145,2]
[334190885,1722820261884,-59218.14113327,0.00025,2]
[334190886,1722820261897,-3329.15664,0.00025,2]
[334190887,1722820261910,-1099.56,0.00025,2]
[334190888,1722820261923,-336.21587999,0.00025,2]
[334190889,1722820261965,-558.31186864,0.00016881,2]
[334190890,1722820261976,-479146.60481185,0.00025,2]
[334190891,1722820262011,-477.47355398,0.00025,2]
[334190892,1722820262024,-605.67764587,0.00025,2]
[334190893,1722820262180,-1536.0614705,0.00025,2]
[334190894,1722820262196,-800.48498193,0.00025,2]
[334190895,1722820263975,449.21056611,0.00011589,2]
[334190896,1722820264435,158.6102867,0.00011589,2]
[334190897,1722820264474,392.17914719,0.00011589,2]
[334190898,1722820268993,553.99873636,0.00016,50]
[334190903,1722820503292,150.0,0.00015,30]
[334190904,1722820541974,158.43,8.749e-05,2]
[334190906,1722820580741,211.87528512,8.749e-05,2]
[334190907,1722820580774,2516.83454324,8.749e-05,2]
[334190908,1722820580799,180962.51396984,8.749e-05,2]
[334190909,1722820581088,215.65287238,8.749e-05,2]
[334190910,1722820582963,155.0,8.749e-05,2]
[334190911,1722820583585,1326.55931318,8.749e-05,2]
[334190912,1722820586073,150.0,8.749e-05,2]
[334190913,1722820586097,150.0,8.749e-05,2]
[334190915,1722820591291,150.0,8.749e-05,2]
[334190916,1722820591312,282.56913587,8.749e-05,2]
[334190917,1722820591337,358.04977788,8.749e-05,2]
[334190918,1722820592256,250.0,8.749e-05,2]
[334190919,1722820592489,221.90073506,8.749e-05,2]
[334190920,1722820592878,644.02870406,8.749e-05,2]
[334190921,1722820670277,24993.83107,0.00027,120]
[334190922,1722820671451,1032.8169775,8.749e-05,2]
[334190923,1722820708069,227.61995131,8.749e-05,2]
[334190924,1722820710368,629.87,8.219e-05,2]
[334190925,1722820754838,-893.832999,9.984e-05,2]
[334190926,1722820754861,-171.17,0.00010026,2]
[334190927,1722820754885,-250.0,0.00010035,2]
[334190928,1722820754908,-783.0,0.00010074,2]
[334190929,1722820754932,-1143.40519,0.00010075,10]
[334190930,1722820754963,-200.0,0.00010102,2]
[334190931,1722820754985,-414.0,0.00010248,2]
[334190932,1722820755009,-629.87,0.00010478,2]
[334190933,1722820755032,-300.0,0.00010499,2]
[334190934,1722820755055,-12813.0313189,0.000105,2]
[334190935,1722820755078,-155.08094277,0.00010605,2]
[334190936,1722820755101,-155.11132019,0.00010605,2]
[334190937,1722820755124,-530.53203882,0.00010605,2]
[334190938,1722820755147,-4469.21404931,0.00010605,2]
[334190939,1722820755169,-213.1103,0.00010697,2]
[334190940,1722820755200,-499.99,0.00010697,2]
[334190941,1722820755224,-150.0,0.00010786,2]
[334190942,1722820760754,402.64634736,9.962e-05,2]
[334190943,1722820792295,1000.0,0.00010118,2]
[334190944,1722820794310,206.59146968,9.962e-05,2]
[334190945,1722820800824,660.88,0.00010132,2]
[334190946,1722820803235,1143.40519,0.00010075,10]
[334190947,1722820811336,428.85,0.00026986,120]
[334190948,1722820814637,9815.12883397,0.0001021,2]
[334190953,1722821045021,500.0,0.00027,120]
[334190954,1722821137619,18000.0,9.5e-05,2]
[334190956,1722821157429,931.3399213,6.94e-05,2]
[334190957,1722821208266,-2776.82389255,9.888e-05,2]
[334190958,1722821216256,726.75,8.219e-05,2]
[334190959,1722821220055,159.16029851,9.5e-05,2]
[334190960,1722821226132,227.61995131,6.94e-05,2]
[334190961,1722821226794,3072.66607217,9.5e-05,2]
[334190962,1722821229413,367.59994124,8.412e-05,2]
[334190967,1722821246315,2567.12650341,6.94e-05,2]
[334190968,1722821256080,897.18585999,8.412e-05,2]
[334190969,1722821261861,250.0,9.551e-05,2]
[334190970,1722821269096,35700.88540887,8.412e-05,2]
[334190973,1722821314947,167.59,9.506e-05,2]
[334190975,1722821317170,1680.59,9.506e-05,2]
[334190978,1722821344459,-200.0,9.592e-05,2]
[334190979,1722821344494,-1701.71,9.82e-05,2]
[334190980,1722821344528,-109.94610745,9.888e-05,2]
[334190982,1722821344562,-200.0,9.951e-05,2]
[334190983,1722821344596,-923.62,9.958e-05,2]
[334190984,1722821344640,-700.0,9.972e-05,2]
[334190985,1722821344676,-992.86,9.992e-05,2]
[334190986,1722821344711,-2752.97994968,0.0001,2]
[334190987,1722821344754,-104.97252596,0.0001,2]
[334190988,1722821344789,-236.97033087,0.0001,2]
[334190989,1722821344826,-754.74,0.00010115,2]
[334190990,1722821344868,-499.99,0.00010118,2]
[334190991,1722821344905,-5164.80921921,0.00010119,2]
[334190992,1722821344961,-3127.85078079,0.00010119,2]
[334190993,1722821344996,-1492.38,0.00010122,2]
[334190994,1722821345030,-150.99,0.00010122,2]
[334190995,1722821345065,-2809.89527634,0.00010122,2]
[334190996,1722821345114,-7581.11605713,0.00010122,2]
[334190997,1722821348766,161.22,8.219e-05,2]
[334191003,1722821415431,426.27511142,8.219e-05,2]
[334191004,1722821416713,1309.06994225,8.219e-05,2]
[334191005,1722821422404,1043.72766288,8.219e-05,2]
[334191006,1722821423765,324.61411861,8.219e-05,2]
[334191097,1722821432662,-3579.1,9.777e-05,2]
[334191099,1722821432676,-155.0913307,9.962e-05,2]
[334191101,1722821432687,-873.0184401,9.962e-05,2]
[334191102,1722821432699,-155.30163089,9.962e-05,2]
[334191103,1722821432710,-233.90659352,9.962e-05,2]
[334191104,1722821432720,-728.84972166,9.962e-05,2]
[334191105,1722821432730,-5432.51866653,0.00010122,2]
[334191106,1722821432740,-300.0,0.00010168,2]
[334191107,1722821432750,-300.0,0.00010168,2]
[334191108,1722821432760,-23900.0,0.00010169,2]
[334191110,1722821432771,-36344.66391154,0.00010169,2]
[334191112,1722821432781,-1400.0,0.000103,3]
[334191113,1722821432791,-300.0,0.000103,3]
[334191115,1722821432800,-2900.0,0.000104,3]
[334191117,1722821432810,-700.0,0.000104,3]
[334191119,1722821432819,-726.75,0.00010464,2]
[334191121,1722821432829,-319.33643393,0.00010497,2]
[334191123,1722821432839,-4400.0,0.000105,3]
[334191125,1722821432848,-1000.0,0.000105,3]
[334191127,1722821432858,-285.81,0.000105,2]
[334191129,1722821432868,-150.99,0.000105,2]
[334191131,1722821432878,-150.0,0.0001051,2]
[334191133,1722821432888,-245402.71817197,0.00010511,2]
[334191135,1722821432901,-13051.83553518,0.00010511,2]
[334191137,1722821432913,-10190.19851949,0.00010511,2]
[334191140,1722821432930,-758.75810321,0.00010511,2]
[334191142,1722821432944,-16607.94678882,0.00010511,2]
[334191144,1722821432957,-937.51369175,0.00010511,2]
[334191146,1722821432969,-13004.96677252,0.00010511,2]
[334191149,1722821432980,-11563.27016476,0.00010511,2]
[334191151,1722821432993,-303.16724252,0.00010511,2]
[334191153,1722821433005,-716.85707654,0.00010511,2]
[334191155,1722821433016,-964.8533289,0.00010511,2]
[334191156,1722821433028,-3075.43167144,0.00010511,2]
[334191157,1722821433092,-415.78075716,0.00010501,2]
[334191158,1722821433104,-557.09924284,0.00010501,2]
[334191159,1722821433114,-2842.97670717,0.00010511,2]
[334191160,1722821433126,-439.35,0.00010511,2]
[334191161,1722821433137,-19934.33694977,0.00010511,2]
[334191162,1722821433149,-8204.41474252,0.00010511,2]
[334191163,1722821433160,-1057.23780858,0.00010511,2]
[334191164,1722821433177,-6609.99999997,0.00010511,2]
[334191165,1722821433189,-550.621148,0.00010511,2]
[334191166,1722821433201,-364.72789729,0.00010511,2]
[334191167,1722821433212,-449.42136309,0.00010511,2]
[334191168,1722821433224,-2628.76875761,0.00010511,2]
[334191169,1722821433235,-2631.1,0.00010511,2]
[334191170,1722821433246,-6000.5275589,0.00010511,2]
[334191171,1722821433256,-591.81180579,0.00010587,2]
[334191172,1722821433266,-12338.23354096,0.00010597,2]
[334191194,1722821438328,-972.88,0.00010501,2]
[334191196,1722821438339,-427.35603358,0.00010501,2]
[334191199,1722821438351,-545.52396642,0.00010501,2]
[334191201,1722821438361,-972.88,0.00010501,2]
[334191203,1722821438371,-972.88,0.00010501,2]
[334191205,1722821438382,-972.88,0.00010501,2]
[334191207,1722821438392,-972.88,0.00010501,2]
[334191209,1722821438404,-972.88,0.00010501,2]
[334191211,1722821438414,-972.88,0.00010501,2]
[334191212,1722821438425,-972.88,0.00010501,2]
[334191213,1722821438440,-972.88,0.00010501,2]
[334191214,1722821438450,-972.88,0.00010501,2]
[334191215,1722821438459,-972.88,0.00010501,2]
[334191216,1722821438470,-305.67603358,0.00010501,2]
[334191221,1722821439734,-667.20396642,0.00010501,2]
[334191223,1722821439753,-972.88,0.00010501,2]
[334191225,1722821439767,-972.88,0.00010501,2]
[334191227,1722821439780,-972.88,0.00010501,2]
[334191229,1722821439792,-972.88,0.00010501,2]
[334191230,1722821439804,-972.88,0.00010501,2]
[334191231,1722821439817,-972.88,0.00010501,2]
[334191232,1722821439829,-240.23202759,0.00010501,2]
[334191233,1722821439844,-530.59257205,0.00010501,2]
[334191234,1722821439859,-202.05540036,0.00010501,2]
[334191235,1722821439871,-601.49972789,0.00010501,2]
[334191236,1722821439885,-371.38027211,0.00010501,2]
[334191237,1722821439897,-972.88,0.00010501,2]
[334191238,1722821439909,-972.88,0.00010501,2]
[334191239,1722821439922,-11899.02325904,0.00010597,2]
[334191240,1722821439940,-1000.0,0.00010597,2]
[334191241,1722821439952,-2500.0,0.00010597,2]
[334191242,1722821439963,-5900.0,0.000106,3]
[334191243,1722821439974,-1400.0,0.000106,3]
[334191244,1722821439985,-1362.33646885,0.000106,2]
[334191245,1722821440045,-294.44452647,0.000106,2]
[334191246,1722821440056,-591.81180575,0.00010667,2]
[334191247,1722821440068,-2500.0,0.0001067,2]
[334191248,1722821440079,-1487.11497526,0.00010694,2]
[334191249,1722821440091,-409.7153858,0.00010696,3]
[334191250,1722821440102,-4289.745,0.00010697,2]
[334191251,1722821440113,-157740.22787805,0.00010697,2]
[334191253,1722821440146,-4509.7,0.00010697,2]
[334191255,1722821440158,-7602.34330623,0.00010697,2]
[334191257,1722821440172,-472.69133858,0.00010697,2]
[334191259,1722821440189,-11123.35543235,0.00010697,2]
[334191262,1722821440201,-1870.08209639,0.00010697,2]
[334191264,1722821440214,-13325.0,0.00010697,2]
[334191266,1722821440228,-1146.98890022,0.00010697,2]
[334191269,1722821440241,-9482.57433588,0.00010697,2]
[334191271,1722821440254,-54667.88387696,0.00010697,2]
[334191273,1722821440268,-22929.47753534,0.00010697,2]
[334191275,1722821440279,-2500.0,0.00010697,2]
[334191278,1722821440290,-7400.0,0.000107,3]
[334191280,1722821440300,-1800.0,0.000107,3]
[334191282,1722821440311,-591.81180575,0.00010746,2]
[334191284,1722821440322,-1656.78099532,0.0001075,2]
[334191286,1722821440332,-200.0,0.00010791,2]
[334191288,1722821440343,-756.48721764,0.00010796,2]
[334191290,1722821440353,-999.99,0.00010796,2]
[334191292,1722821440363,-100000.0,0.00010797,2]
[334191294,1722821440374,-1000.0,0.00010797,2]
[334191296,1722821440385,-472.0142,0.00010797,2]
[334191298,1722821440395,-165.8648,0.00010797,2]
[334191300,1722821440405,-39117.4587,0.00010797,2]
[334191303,1722821440414,-1400.0,0.000108,3]
[334191306,1722821440426,-300.0,0.000108,3]
[334191309,1722821440441,-591.81180575,0.00010826,2]
[334191312,1722821440452,-321.44547856,0.00010899,2]
[334191315,1722821440464,-1400.0,0.000109,3]
[334191317,1722821440475,-300.0,0.000109,3]
[334191320,1722821440486,-1211.1112,0.000109,2]
[334191322,1722821440497,-240.37411523,0.000109,2]
[334191324,1722821440508,-1656.78099532,0.000109,2]
[334191326,1722821440519,-800.09258102,0.000109,2]
[334191329,1722821440530,-9737.05102388,0.000109,2]
[334191331,1722821440541,-151.57,0.000109,2]
[334191333,1722821440552,-151.57,0.000109,2]
[334191335,1722821440563,-151.57,0.000109,2]
[334191337,1722821440574,-151.57,0.000109,2]
[334191339,1722821440586,-176.76776976,0.000109,2]
[334191341,1722821440597,-591.81180575,0.00010905,2]
[334191343,1722821440608,-240.37411523,0.00010913,2]
[334191347,1722821440619,-800.09258102,0.00010918,2]
[334191349,1722821440632,-9737.05102387,0.00010918,2]
[334191351,1722821440646,-240.37411523,0.00010926,2]
[334191353,1722821440658,-800.09258102,0.00010936,2]
[334191355,1722821440671,-9737.05102387,0.00010936,2]
[334191357,1722821440690,-461.7164,0.00010954,2]
[334191359,1722821440702,-326.10412573,0.00010958,2]
[334191362,1722821440714,-511.68475182,0.00010958,2]
[334191364,1722821440727,-500.0,0.00010958,2]
[334191366,1722821440739,-308.96855708,0.00010958,2]
[334191368,1722821440752,-500.0,0.00010958,2]
[334191369,1722821440765,-500.0,0.00010958,2]
[334191370,1722821440777,-267.79074384,0.00010958,2]
[334191371,1722821440788,-643.34737393,0.00010958,2]
[334191372,1722821440800,-500.0,0.00010958,2]
[334191373,1722821440811,-500.0,0.00010958,2]
[334191374,1722821440823,-500.0,0.00010958,2]
[334191375,1722821440835,-500.0,0.00010958,2]
[334191376,1722821440846,-500.0,0.00010958,2]
[334191377,1722821440857,-405.65258688,0.00010958,2]
[334191378,1722821440868,-500.0,0.00010958,2]
[334191379,1722821440880,-500.0,0.00010958,2]
[334191380,1722821440891,-500.0,0.00010958,2]
[334191381,1722821440902,-500.0,0.00010958,2]
[334191382,1722821440915,-500.0,0.00010958,2]
[334191383,1722821440926,-500.0,0.00010958,2]
[334191384,1722821440942,-500.0,0.00010958,2]
[334191385,1722821440953,-500.0,0.00010958,2]
[334191386,1722821440969,-150.0,0.00010959,2]
[334191387,1722821440984,-2212.1,0.00010959,2]
[334191388,1722821440999,-1500.0,0.00010959,5]
[334191389,1722821441012,-1000.0,0.00010959,2]
[334191390,1722821441024,-1070.0,0.00010959,2]
[334191391,1722821441035,-250.0,0.00010959,2]
[334191392,1722821441048,-867.27,0.00010959,2]
[334191393,1722821441061,-200.0,0.00010973,2]
[334191394,1722821441076,-200.0,0.00010973,2]
[334191395,1722821441091,-151.57,0.0001099,2]
[334191396,1722821441104,-151.57,0.0001099,2]
[334191397,1722821441118,-151.57,0.0001099,2]
[334191398,1722821441132,-151.57,0.0001099,2]
[334191399,1722821441146,-151.57,0.0001099,2]
[334191400,1722821441158,-151.57,0.0001099,2]
[334191401,1722821441171,-151.57,0.0001099,2]
[334191402,1722821441191,-151.57,0.0001099,2]
[334191403,1722821441205,-151.57,0.0001099,2]
[334191404,1722821441219,-151.57,0.0001099,2]
[334191405,1722821441232,-151.57,0.0001099,2]
[334191406,1722821441243,-151.57,0.0001099,2]
[334191407,1722821441254,-151.57,0.0001099,2]
[334191408,1722821441266,-151.57,0.0001099,2]
[334191409,1722821441278,-151.57,0.0001099,2]
[334191410,1722821441291,-151.57,0.0001099,2]
[334191411,1722821441304,-151.57,0.0001099,2]
[334191412,1722821441317,-151.57,0.0001099,2]
[334191413,1722821441331,-151.57,0.0001099,2]
[334191414,1722821441345,-151.57,0.0001099,2]
[334191415,1722821441358,-151.57,0.0001099,2]
[334191416,1722821441371,-151.57,0.0001099,2]
[334191417,1722821441382,-151.57,0.0001099,2]
[334191419,1722821441392,-151.57,0.0001099,2]
[334191421,1722821441404,-151.57,0.0001099,2]
[334191424,1722821441417,-151.57,0.0001099,2]
[334191426,1722821441434,-151.57,0.0001099,2]
[334191428,1722821441448,-151.57,0.0001099,2]
[334191431,1722821441459,-151.57,0.0001099,2]
[334191433,1722821441473,-151.57,0.0001099,2]
[334191435,1722821441485,-151.57,0.0001099,2]
[334191438,1722821441500,-151.57,0.0001099,2]
[334191440,1722821441511,-151.57,0.0001099,2]
[334191442,1722821441523,-151.57,0.0001099,2]
[334191444,1722821441534,-151.57,0.0001099,2]
[334191447,1722821441547,-151.57,0.0001099,2]
[334191449,1722821441559,-151.57,0.0001099,2]
[334191451,1722821441571,-151.57,0.0001099,2]
[334191454,1722821441592,-151.57,0.0001099,2]
[334191456,1722821441604,-151.57,0.0001099,2]
[334191459,1722821441616,-151.57,0.0001099,2]
[334191461,1722821441628,-151.57,0.0001099,2]
[334191463,1722821441640,-151.57,0.0001099,2]
[334191465,1722821441653,-151.57,0.0001099,2]
[334191467,1722821441664,-151.57,0.0001099,2]
[334191469,1722821441678,-151.57,0.0001099,2]
[334191472,1722821441696,-151.57,0.0001099,2]
[334191474,1722821441708,-151.57,0.0001099,2]
[334191475,1722821441721,-151.57,0.0001099,2]
[334191476,1722821441736,-151.57,0.0001099,2]
[334191478,1722821441748,-151.57,0.0001099,2]
[334191479,1722821441761,-151.57,0.0001099,2]
[334191481,1722821441773,-151.57,0.0001099,2]
[334191484,1722821441787,-151.57,0.0001099,2]
[334191486,1722821441800,-11896.91980208,0.00010997,2]
[334191488,1722821441813,-16378.8625,0.00010999,2]
[334191490,1722821441826,-500.0,0.00010999,2]
[334191493,1722821441839,-629.15869243,0.00010999,2]
[334191495,1722821441851,-507.46537256,0.00010999,2]
[334191497,1722821441864,-159.62959705,0.00010999,2]
[334191499,1722821441877,-9214713.54913799,0.00011,2]
[334191501,1722821441890,-959547.67797641,0.00011,2]
[334191504,1722821441902,-5134.55,0.00011035,2]
[334191505,1722821441914,-3534.07,0.00011035,2]